lending/lending_fUSD_20250131
["ID","MTS","AMOUNT","RATE_DAILY","PERIOD"]
[351133808,1738348240834,-500.0,0.00016985,2]
[351133809,1738348240844,-500.0,0.00016985,2]
[351133810,1738348240853,-500.0,0.00016985,2]
[351133811,1738348240863,-500.0,0.00016985,2]
[351133812,1738348240872,-500.0,0.00016985,2]
[351133813,1738348240882,-500.0,0.00016985,2]
[351133814,1738348240892,-500.0,0.00016985,2]
[351133815,1738348240903,-501.0317834,0.00016985,2]
[351133816,1738348240913,-350.80832799,0.00016985,2]
[351133817,1738348240923,-500.0,0.00016985,2]
[351133818,1738348240933,-500.0,0.00016985,2]
[351133819,1738348240943,-500.0,0.00016985,2]
[351133820,1738348240953,-500.0,0.00016985,2]
[351133821,1738348240962,-500.0,0.00016985,2]
[351133822,1738348240972,-500.0,0.00016985,2]
[351133823,1738348240982,-1455.79,0.00016986,2]
[351133824,1738348240991,-686.9,0.00016986,2]
[351133825,1738348241001,-500.0,0.00016986,2]
[351133826,1738348241011,-500.0,0.00016986,2]
[351133827,1738348241020,-2551.27,0.00016986,2]
[351133828,1738348241030,-1359.74,0.00016986,2]
[351133829,1738348241039,-3164.08,0.00016986,2]
[351133830,1738348241049,-1771.52,0.00016986,2]
[351133831,1738348241059,-500.0,0.00016986,2]
[351133832,1738348241068,-3352.95,0.00016986,2]
[351133833,1738348241079,-1723.08,0.00016986,2]
[351133834,1738348241089,-500.0,0.00016986,2]
[351133835,1738348241099,-904.61,0.00016986,2]
[351133836,1738348241108,-3205.13,0.00016986,2]
[351133837,1738348241118,-2877.99,0.00016986,2]
[351133838,1738348241128,-2087.9,0.00016986,2]
[351133839,1738348241138,-500.0,0.00016986,2]
[351133840,1738348241147,-500.0,0.00016986,2]
[351133841,1738348241160,-2031.19,0.00016986,2]
[351133842,1738348241170,-1464.79,0.00016986,2]
[351133843,1738348241179,-500.0,0.00016986,2]
[351133844,1738348241189,-500.0,0.00016986,2]
[351133845,1738348241198,-7094.67,0.00016986,2]
[351133846,1738348241208,-500.0,0.00016986,2]
[351133847,1738348241218,-846.73,0.00016986,2]
[351133848,1738348241227,-500.0,0.00016986,2]
[351133849,1738348241237,-1572.93,0.00016986,2]
[351133850,1738348241246,-361.6635915,0.00016986,2]
[351133851,1738348241256,-1436.17,0.00016986,2]
[351133852,1738348241265,-500.0,0.00016986,2]
[351133853,1738348241275,-774.29,0.00017014,2]
[351133854,1738348241285,-804.48,0.00017014,2]
[351133855,1738348241294,-774.29,0.00017014,2]
[351133856,1738348241304,-439.19,0.00017014,2]
[351133857,1738348241313,-774.29,0.00017014,2]
[351133858,1738348241322,-2145.9063,0.0001702,2]
[351133859,1738348241332,-431.18147599,0.00017084,2]
[351133860,1738348241342,-1153.16590249,0.00017107,2]
[351133861,1738348241351,-1927.5589891,0.00017118,2]
[351133862,1738348241361,-500.0,0.0001712,2]
[351133863,1738348241371,-500.0,0.0001712,2]
[351133864,1738348241380,-500.0,0.0001712,2]
[351133865,1738348241390,-500.0,0.0001712,2]
[351133866,1738348241400,-500.0,0.0001712,2]
[351133867,1738348241414,-500.0,0.0001712,2]
[351133868,1738348241423,-500.0,0.0001712,2]
[351133869,1738348241433,-592.09,0.0001712,2]
[351133870,1738348241443,-449.48019917,0.0001712,2]
[351133871,1738348241455,-500.0,0.0001712,2]
[351133872,1738348241464,-541.54,0.0001712,2]
[351133873,1738348241473,-500.0,0.0001712,2]
[351133874,1738348241483,-661.57,0.0001712,2]
[351133875,1738348241495,-500.0,0.0001712,2]
[351133876,1738348241506,-500.0,0.0001712,2]
[351133877,1738348241515,-568.28,0.0001712,2]
[351133878,1738348241525,-500.0,0.0001712,2]
[351133879,1738348241534,-517.91,0.0001712,2]
[351133880,1738348241544,-500.0,0.0001712,2]
[351133881,1738348241553,-520.50850601,0.0001712,2]
[351133882,1738348241562,-500.0,0.0001712,2]
[351133883,1738348241583,-500.0,0.0001712,2]
[351133884,1738348241592,-573.54,0.0001712,2]
[351133885,1738348241602,-500.0,0.0001712,2]
[351133886,1738348241611,-500.0,0.0001712,2]
[351133887,1738348241620,-730.37,0.0001712,2]
[351133888,1738348241630,-1026.2,0.0001712,2]
[351133889,1738348241639,-536.25,0.0001712,2]
[351133890,1738348241649,-500.0,0.0001712,2]
[351133891,1738348241661,-978.34,0.0001712,2]
[351133892,1738348241671,-1577.73,0.0001712,2]
[351133893,1738348241680,-500.0,0.0001712,7]
[351133894,1738348241690,-519.92,0.0001712,2]
[351133895,1738348241699,-932.35,0.0001712,2]
[351133896,1738348241708,-647.42,0.0001712,2]
[351133897,1738348241718,-286.106421,0.0001712,2]
[351133898,1738348241727,-2652.51,0.0001712,2]
[351133899,1738348241736,-500.0,0.0001712,2]
[351133900,1738348241745,-551.45,0.0001712,2]
[351133901,1738348241754,-500.0,0.0001712,2]
[351133902,1738348241763,-616.52,0.0001712,2]
[351133903,1738348241772,-611.99,0.0001712,2]
[351133904,1738348241781,-1010.98,0.0001712,2]
[351133905,1738348241791,-1917.23,0.0001712,2]
[351133906,1738348241800,-345.181563,0.0001712,2]
[351133907,1738348241809,-201.451431,0.0001712,2]
[351133908,1738348241819,-1746.14,0.0001712,2]
[351133909,1738348241828,-1127.11,0.0001712,2]
[351133910,1738348241838,-957.27,0.0001712,2]
[351133911,1738348241847,-683.39,0.0001712,2]
[351133912,1738348241856,-834.53,0.0001712,2]
[351133913,1738348241866,-500.0,0.0001712,2]
[351133914,1738348241875,-3304.95,0.0001712,2]
[351133915,1738348241885,-500.0,0.0001712,2]
[351133916,1738348241895,-500.0,0.0001712,2]
[351133917,1738348241907,-162.579987,0.0001712,2]
[351133918,1738348241916,-1375.96,0.0001712,2]
[351133919,1738348241926,-500.0,0.0001712,2]
[351133920,1738348241935,-1152.1,0.0001712,2]
[351133921,1738348241945,-1117.85,0.0001712,2]
[351133922,1738348241955,-637.73,0.0001712,2]
[351133923,1738348241964,-151.742883,0.0001712,2]
[351133924,1738348241974,-1174.79,0.0001712,2]
[351133925,1738348241984,-861.45,0.0001712,2]
[351133926,1738348242169,-1552.68,0.0001712,2]
[351133927,1738348242179,-5050.15,0.0001712,2]
[351133928,1738348242188,-1714.15,0.0001712,2]
[351133929,1738348242197,-970.54,0.0001712,2]
[351133930,1738348242207,-974.2,0.0001712,2]
[351133931,1738348242216,-2977.2,0.0001712,2]
[351133932,1738348242226,-2472.78,0.0001712,2]
[351133933,1738348242235,-2130.65,0.0001712,2]
[351133934,1738348242244,-164.88144,0.0001712,2]
[351133935,1738348242254,-2310.79,0.0001712,2]
[351133936,1738348242264,-3082.33,0.0001712,2]
[351133937,1738348242274,-1236.46,0.0001712,2]
[351133938,1738348242284,-500.0,0.0001712,2]
[351133939,1738348242293,-159.421069,0.0001712,2]
[351133940,1738348242303,-1531.95,0.0001712,2]
[351133941,1738348242312,-1897.38,0.0001712,2]
[351133942,1738348242322,-500.0,0.0001712,2]
[351133943,1738348242331,-565.22,0.0001712,2]
[351133944,1738348242341,-4150.61,0.0001712,2]
[351133945,1738348242351,-500.0,0.0001712,2]
[351133946,1738348242360,-4363.87,0.0001712,2]
[351133948,1738348242370,-1000.0,0.0001712,30]
[351133949,1738348242379,-500.0,0.0001712,2]
[351133951,1738348242388,-166.309678,0.0001712,2]
[351133953,1738348242398,-500.0,0.0001712,2]
[351133954,1738348242413,-977.31,0.0001712,2]
[351133955,1738348242423,-151.74288,0.0001712,2]
[351133956,1738348242433,-500.0,0.0001712,2]
[351133957,1738348242442,-500.0,0.0001712,2]
[351133959,1738348242452,-156.584798,0.0001712,2]
[351133961,1738348242462,-500.0,0.0001712,2]
[351133963,1738348242471,-755.3,0.0001712,2]
[351133966,1738348242481,-500.0,0.0001712,2]
[351133969,1738348242490,-500.0,0.0001712,2]
[351133972,1738348242503,-1593.71,0.0001712,2]
[351133974,1738348242512,-500.0,0.0001712,2]
[351133976,1738348242522,-789.61,0.0001712,2]
[351133977,1738348242531,-657.65,0.00017121,2]
[351133979,1738348242541,-500.0,0.00017121,2]
[351133982,1738348242551,-500.0,0.00017121,2]
[351133984,1738348242561,-500.0,0.00017121,2]
[351133986,1738348242571,-500.0,0.00017121,2]
[351133988,1738348242580,-500.0,0.00017121,2]
[351133989,1738348242589,-500.0,0.00017121,2]
[351133991,1738348242599,-500.0,0.00017121,2]
[351133993,1738348242609,-455.2027526,0.00017121,2]
[351133995,1738348242620,-500.0,0.00017121,2]
[351133997,1738348242629,-500.0,0.00017121,2]
[351133999,1738348242639,-500.0,0.00017121,2]
[351134002,1738348242648,-500.0,0.00017121,2]
[351134003,1738348242666,-500.0,0.00017121,2]
[351134005,1738348242677,-772.66,0.00017121,2]
[351134007,1738348242687,-265.18730198,0.00017121,2]
[351134008,1738348242696,-500.0,0.00017121,2]
[351134009,1738348242707,-500.0,0.00017121,2]
[351134010,1738348242717,-500.0,0.00017121,2]
[351134011,1738348242728,-500.0,0.00017121,2]
[351134012,1738348242737,-339.73826183,0.00017121,2]
[351134013,1738348242748,-500.0,0.00017121,2]
[351134014,1738348242758,-480.83292834,0.00017121,2]
[351134015,1738348242767,-500.0,0.00017121,2]
[351134016,1738348242777,-500.0,0.00017121,2]
[351134017,1738348242786,-500.0,0.00017121,2]
[351134018,1738348242796,-606.93,0.00017121,2]
[351134019,1738348242806,-500.0,0.00017121,2]
[351134020,1738348242816,-522.94,0.00017121,2]
[351134021,1738348242827,-500.0,0.00017121,2]
[351134022,1738348242836,-500.0,0.00017121,2]
[351134023,1738348242846,-500.0,0.00017121,2]
[351134024,1738348242856,-691.72,0.00017121,2]
[351134025,1738348242865,-694.08,0.00017121,2]
[351134026,1738348242875,-500.0,0.00017121,2]
[351134027,1738348242884,-500.0,0.00017121,2]
[351134028,1738348242894,-500.0,0.00017121,2]
[351134029,1738348242906,-346.78291548,0.00017121,2]
[351134030,1738348242915,-622.01,0.00017121,2]
[351134031,1738348242924,-500.0,0.00017121,2]
[351134032,1738348242934,-500.0,0.00017121,2]
[351134033,1738348242943,-357.19939898,0.00017121,2]
[351134034,1738348242952,-500.0,0.00017121,2]
[351134035,1738348242962,-500.0,0.00017121,2]
[351134036,1738348242971,-500.0,0.00017121,2]
[351134037,1738348242980,-500.0,0.00017121,2]
[351134038,1738348242989,-799.89,0.00017121,2]
[351134039,1738348242999,-500.0,0.00017121,2]
[351134040,1738348243008,-666.3,0.00017121,2]
[351134041,1738348243017,-500.0,0.00017121,2]
[351134043,1738348243027,-500.0,0.00017121,2]
[351134045,1738348243036,-500.0,0.00017121,2]
[351134046,1738348243045,-536.21,0.00017121,2]
[351134047,1738348243054,-500.0,0.00017121,2]
[351134048,1738348243063,-872.1,0.00017121,2]
[351134049,1738348243072,-1030.96,0.00017121,2]
[351134050,1738348243081,-544.21,0.00017121,2]
[351134051,1738348243091,-500.0,0.00017121,2]
[351134052,1738348243100,-1315.77,0.00017121,2]
[351134053,1738348243109,-500.0,0.00017121,2]
[351134054,1738348243119,-4715.16,0.00017121,2]
[351134055,1738348243128,-500.0,0.00017121,2]
[351134056,1738348243137,-993.3,0.00017121,2]
[351134057,1738348243147,-2605.9,0.00017121,2]
[351134058,1738348243159,-4721.91,0.00017121,2]
[351134059,1738348243169,-500.0,0.00017121,2]
[351134060,1738348243178,-2283.47,0.00017121,2]
[351134061,1738348243187,-939.45,0.00017121,2]
[351134062,1738348243197,-2389.08,0.00017121,2]
[351134063,1738348243206,-500.0,0.00017121,2]
[351134064,1738348243215,-500.0,0.00017121,2]
[351134065,1738348243225,-965.04,0.00017121,2]
[351134066,1738348243235,-500.0,0.00017121,2]
[351134067,1738348243244,-557.93,0.00017121,2]
[351134068,1738348243254,-500.0,0.00017121,2]
[351134069,1738348243264,-2395.63,0.00017121,2]
[351134070,1738348243273,-1060.87,0.00017121,2]
[351134071,1738348243285,-1276.49,0.00017121,2]
[351134072,1738348243294,-500.0,0.00017121,2]
[351134073,1738348243303,-500.0,0.00017121,2]
[351134074,1738348243313,-500.0,0.00017121,2]
[351134075,1738348243322,-500.0,0.00017121,2]
[351134076,1738348243333,-500.0,0.00017121,2]
[351134077,1738348243342,-973.6,0.00017121,2]
[351134078,1738348243351,-500.0,0.00017121,2]
[351134079,1738348243361,-500.0,0.00017121,2]
[351134080,1738348243370,-870.13,0.00017121,2]
[351134081,1738348243379,-1177.58,0.00017121,2]
[351134082,1738348243389,-500.0,0.00017121,2]
[351134083,1738348243398,-500.0,0.00017122,2]
[351134084,1738348243410,-500.0,0.00017122,2]
[351134085,1738348243420,-500.0,0.00017122,2]
[351134086,1738348243429,-500.0,0.00017122,2]
[351134087,1738348243439,-500.0,0.00017122,2]
[351134088,1738348243448,-500.0,0.00017122,2]
[351134089,1738348243457,-500.0,0.00017122,2]
[351134090,1738348243466,-500.0,0.00017122,2]
[351134091,1738348243475,-500.0,0.00017122,2]
[351134092,1738348243487,-500.0,0.00017122,2]
[351134093,1738348243498,-500.0,0.00017122,2]
[351134094,1738348243507,-500.0,0.00017122,2]
[351134095,1738348243517,-510.61,0.00017122,2]
[351134096,1738348243527,-500.0,0.00017122,2]
[351134097,1738348243537,-500.0,0.00017122,2]
[351134098,1738348243547,-500.0,0.00017122,2]
[351134099,1738348243556,-504.93949034,0.00017122,2]
[351134100,1738348243566,-500.0,0.00017122,2]
[351134101,1738348243575,-500.0,0.00017122,2]
[351134102,1738348243585,-500.0,0.00017122,2]
[351134103,1738348243595,-500.0,0.00017122,2]
[351134104,1738348243604,-500.0,0.00017122,2]
[351134105,1738348243613,-500.0,0.00017122,2]
[351134106,1738348243622,-342.20153264,0.00017122,2]
[351134107,1738348243631,-500.0,0.00017122,2]
[351134108,1738348243641,-500.0,0.00017122,2]
[351134109,1738348243650,-500.0,0.00017122,2]
[351134110,1738348243662,-500.0,0.00017122,2]
[351134111,1738348243672,-500.0,0.00017122,2]
[351134112,1738348243681,-500.0,0.00017122,2]
[351134113,1738348243691,-508.46555255,0.00017122,2]
[351134114,1738348243700,-500.0,0.00017122,2]
[351134115,1738348243710,-500.0,0.00017122,2]
[351134116,1738348243719,-500.0,0.00017122,2]
[351134117,1738348243729,-500.0,0.00017122,2]
[351134118,1738348243739,-526.62653839,0.00017122,2]
[351134120,1738348243749,-500.30038531,0.00017122,2]
[351134122,1738348243758,-500.0,0.00017122,2]
[351134124,1738348243768,-500.0,0.00017122,2]
[351134126,1738348243777,-500.0,0.00017122,2]
[351134128,1738348243787,-511.37530887,0.00017122,2]
[351134130,1738348243796,-524.59074225,0.00017122,2]
[351134132,1738348243806,-500.0,0.00017122,2]
[351134134,1738348243816,-500.0,0.00017122,2]
[351134136,1738348243826,-500.0,0.00017122,2]
[351134138,1738348243836,-500.0,0.00017122,2]
[351134140,1738348243845,-500.0,0.00017122,2]
[351134141,1738348243855,-500.0,0.00017122,2]
[351134142,1738348243864,-500.0,0.00017122,2]
[351134143,1738348243874,-500.0,0.00017122,2]
[351134144,1738348243884,-500.0,0.00017122,2]
[351134145,1738348243893,-500.0,0.00017122,2]
[351134146,1738348243903,-500.0,0.00017122,2]
[351134147,1738348243915,-500.0,0.00017122,2]
[351134148,1738348243924,-500.0,0.00017122,2]
[351134149,1738348243934,-500.0,0.00017122,2]
[351134150,1738348243943,-500.0,0.00017122,2]
[351134151,1738348243952,-500.0,0.00017122,2]
[351134152,1738348243961,-500.0,0.00017122,2]
[351134153,1738348243971,-1455.79,0.00017123,2]
[351134154,1738348243980,-686.9,0.00017123,2]
[351134155,1738348243990,-500.0,0.00017123,2]
[351134156,1738348243999,-500.0,0.00017123,2]
[351134157,1738348244009,-2551.27,0.00017123,2]
[351134158,1738348244018,-1359.74,0.00017123,2]
[351134159,1738348244027,-3164.08,0.00017123,2]
[351134160,1738348244036,-1771.52,0.00017123,2]
[351134161,1738348244045,-500.0,0.00017123,2]
[351134162,1738348244056,-3352.95,0.00017123,2]
[351134163,1738348244065,-1723.08,0.00017123,2]
[351134164,1738348244074,-500.0,0.00017123,2]
[351134165,1738348244084,-904.61,0.00017123,2]
[351134166,1738348244094,-3205.13,0.00017123,2]
[351134167,1738348244103,-2877.99,0.00017123,2]
[351134168,1738348244113,-2087.9,0.00017123,2]
[351134169,1738348244123,-500.0,0.00017123,2]
[351134170,1738348244132,-500.0,0.00017123,2]
[351134171,1738348244142,-2031.19,0.00017123,2]
[351134172,1738348244152,-1464.79,0.00017123,2]
[351134173,1738348244165,-500.0,0.00017123,2]
[351134174,1738348244175,-500.0,0.00017123,2]
[351134175,1738348244185,-7094.67,0.00017123,2]
[351134176,1738348244195,-507.46532461,0.00017123,2]
[351134177,1738348244204,-846.73,0.00017123,2]
[351134178,1738348244214,-500.0,0.00017123,2]
[351134179,1738348244224,-1572.93,0.00017123,2]
[351134180,1738348244233,-1436.17,0.00017123,2]
[351134181,1738348244244,-500.0,0.00017123,2]
[351134182,1738348244253,-1153.16590249,0.00017245,2]
[351134183,1738348244263,-500.0,0.00017257,2]
[351134184,1738348244272,-500.0,0.00017257,2]
[351134185,1738348244282,-500.0,0.00017257,2]
[351134186,1738348244292,-500.0,0.00017257,2]
[351134187,1738348244301,-500.0,0.00017257,2]
[351134188,1738348244310,-500.0,0.00017257,2]
[351134189,1738348244320,-500.0,0.00017257,2]
[351134190,1738348244332,-592.09,0.00017257,2]
[351134191,1738348244342,-500.0,0.00017257,2]
[351134192,1738348244352,-541.54,0.00017257,2]
[351134193,1738348244361,-500.0,0.00017257,2]
[351134194,1738348244371,-661.57,0.00017257,2]
[351134195,1738348244383,-500.0,0.00017257,2]
[351134196,1738348244393,-500.0,0.00017257,2]
[351134197,1738348244403,-568.28,0.00017257,2]
[351134198,1738348244415,-500.0,0.00017257,2]
[351134199,1738348244425,-517.91,0.00017257,2]
[351134200,1738348244435,-500.0,0.00017257,2]
[351134201,1738348244444,-500.0,0.00017257,2]
[351134202,1738348244454,-500.0,0.00017257,2]
[351134203,1738348244464,-573.54,0.00017257,2]
[351134204,1738348244474,-500.0,0.00017257,2]
[351134205,1738348244484,-500.0,0.00017257,2]
[351134206,1738348244494,-730.37,0.00017257,2]
[351134207,1738348244506,-1026.2,0.00017257,2]
[351134208,1738348244515,-500.0,0.00017257,2]
[351134209,1738348244525,-536.25,0.00017257,2]
[351134210,1738348244583,-978.34,0.00017257,2]
[351134211,1738348244592,-1577.73,0.00017257,2]
[351134212,1738348244601,-500.0,0.00017257,7]
[351134213,1738348244610,-519.92,0.00017257,2]
[351134214,1738348244619,-932.35,0.00017257,2]
[351134215,1738348244628,-647.42,0.00017257,2]
[351134216,1738348244638,-286.106421,0.00017257,2]
[351134217,1738348244647,-2652.51,0.00017257,2]
[351134218,1738348244657,-500.0,0.00017257,2]
[351134219,1738348244666,-500.0,0.00017257,2]
[351134220,1738348244675,-551.45,0.00017257,2]
[351134221,1738348244684,-616.52,0.00017257,2]
[351134222,1738348244692,-611.99,0.00017257,2]
[351134223,1738348244702,-1010.98,0.00017257,2]
[351134224,1738348244711,-1917.23,0.00017257,2]
[351134225,1738348244720,-345.181563,0.00017257,2]
[351134226,1738348244729,-1746.14,0.00017257,2]
[351134227,1738348244738,-1127.11,0.00017257,2]
[351134228,1738348244747,-957.27,0.00017257,2]
[351134229,1738348244757,-683.39,0.00017257,2]
[351134230,1738348244766,-834.53,0.00017257,2]
[351134231,1738348244775,-500.0,0.00017257,2]
[351134232,1738348244785,-3304.95,0.00017257,2]
[351134233,1738348244794,-500.0,0.00017257,2]
[351134234,1738348244803,-500.0,0.00017257,2]
[351134235,1738348244812,-1375.96,0.00017257,2]
[351134236,1738348244821,-1152.1,0.00017257,2]
[351134237,1738348244830,-1117.85,0.00017257,2]
[351134238,1738348244839,-637.73,0.00017257,2]
[351134239,1738348244848,-1174.79,0.00017257,2]
[351134240,1738348244857,-861.45,0.00017257,2]
[351134241,1738348244867,-1552.68,0.00017257,2]
[351134242,1738348244876,-5050.15,0.00017257,2]
[351134243,1738348244887,-1714.15,0.00017257,2]
[351134244,1738348244896,-970.54,0.00017257,2]
[351134245,1738348244907,-974.2,0.00017257,2]
[351134246,1738348244917,-2977.2,0.00017257,2]
[351134247,1738348244926,-2472.78,0.00017257,2]
[351134248,1738348244935,-2130.65,0.00017257,2]
[351134249,1738348244944,-2310.79,0.00017257,2]
[351134250,1738348244953,-3082.33,0.00017257,2]
[351134251,1738348244962,-1236.46,0.00017257,2]
[351134252,1738348244971,-500.0,0.00017257,2]
[351134253,1738348244980,-1531.95,0.00017257,2]
[351134254,1738348244989,-1897.38,0.00017257,2]
[351134255,1738348244998,-500.0,0.00017257,2]
[351134256,1738348245007,-565.22,0.00017257,2]
[351134257,1738348245016,-4150.61,0.00017257,2]
[351134258,1738348245025,-500.0,0.00017257,2]
[351134259,1738348245034,-4363.87,0.00017257,2]
[351134260,1738348245044,-1000.0,0.00017257,30]
[351134261,1738348245052,-500.0,0.00017257,2]
[351134262,1738348245061,-500.0,0.00017257,2]
[351134263,1738348245070,-977.31,0.00017257,2]
[351134264,1738348245079,-500.0,0.00017257,2]
[351134265,1738348245088,-500.0,0.00017257,2]
[351134266,1738348245097,-500.0,0.00017257,2]
[351134267,1738348245106,-755.3,0.00017257,2]
[351134268,1738348245115,-500.0,0.00017257,2]
[351134269,1738348245124,-500.0,0.00017257,2]
[351134270,1738348245133,-1593.71,0.00017257,2]
[351134271,1738348245143,-500.0,0.00017257,2]
[351134272,1738348245152,-657.65,0.00017258,2]
[351134273,1738348245165,-500.0,0.00017258,2]
[351134274,1738348245174,-500.0,0.00017258,2]
[351134275,1738348245183,-380.77754602,0.00017258,2]
[351134276,1738348245192,-500.0,0.00017258,2]
[351134277,1738348245201,-500.0,0.00017258,2]
[351134278,1738348245210,-500.0,0.00017258,2]
[351134279,1738348245219,-500.0,0.00017258,2]
[351134280,1738348245228,-500.0,0.00017258,2]
[351134281,1738348245238,-500.0,0.00017258,2]
[351134282,1738348245247,-500.0,0.00017258,2]
[351134283,1738348245256,-500.0,0.00017258,2]
[351134284,1738348245265,-500.0,0.00017258,2]
[351134285,1738348245275,-772.66,0.00017258,2]
[351134286,1738348245284,-500.0,0.00017258,2]
[351134287,1738348245294,-500.0,0.00017258,2]
[351134288,1738348245303,-500.0,0.00017258,2]
[351134289,1738348245313,-580.04,0.00017258,2]
[351134290,1738348245322,-500.0,0.00017258,2]
[351134292,1738348245331,-500.0,0.00017258,2]
[351134294,1738348245341,-500.0,0.00017258,2]
[351134295,1738348245350,-500.0,0.00017258,2]
[351134296,1738348245359,-606.93,0.00017258,2]
[351134297,1738348245369,-500.0,0.00017258,2]
[351134298,1738348245378,-522.94,0.00017258,2]
[351134299,1738348245387,-500.0,0.00017258,2]
[351134301,1738348245397,-500.0,0.00017258,2]
[351134303,1738348245409,-500.0,0.00017258,2]
[351134304,1738348245418,-691.72,0.00017258,2]
[351134305,1738348245427,-694.08,0.00017258,2]
[351134306,1738348245437,-500.0,0.00017258,2]
[351134308,1738348245446,-500.0,0.00017258,2]
[351134309,1738348245455,-500.0,0.00017258,2]
[351134310,1738348245465,-622.01,0.00017258,2]
[351134311,1738348245475,-500.0,0.00017258,2]
[351134312,1738348245484,-500.0,0.00017258,2]
[351134313,1738348245496,-500.0,0.00017258,2]
[351134315,1738348245506,-500.0,0.00017258,2]
[351134316,1738348245516,-500.0,0.00017258,2]
[351134318,1738348245525,-799.89,0.00017258,2]
[351134320,1738348245537,-500.0,0.00017258,2]
[351134322,1738348245546,-666.3,0.00017258,2]
[351134324,1738348245555,-500.0,0.00017258,2]
[351134326,1738348245564,-500.0,0.00017258,2]
[351134329,1738348245575,-536.21,0.00017258,2]
[351134332,1738348245584,-500.0,0.00017258,2]
[351134335,1738348245593,-872.1,0.00017258,2]
[351134337,1738348245603,-1030.96,0.00017258,2]
[351134339,1738348245612,-544.21,0.00017258,2]
[351134341,1738348245622,-500.0,0.00017258,2]
[351134343,1738348245631,-1315.77,0.00017258,2]
[351134345,1738348245640,-500.0,0.00017258,2]
[351134347,1738348245649,-4715.16,0.00017258,2]
[351134348,1738348245658,-500.0,0.00017258,2]
[351134349,1738348245667,-993.3,0.00017258,2]
[351134350,1738348245676,-2605.9,0.00017258,2]
[351134351,1738348245686,-4721.91,0.00017258,2]
[351134352,1738348245695,-500.0,0.00017258,2]
[351134353,1738348245705,-2283.47,0.00017258,2]
[351134354,1738348245719,-939.45,0.00017258,2]
[351134355,1738348245729,-2389.08,0.00017258,2]
[351134356,1738348245738,-500.0,0.00017258,2]
[351134357,1738348245747,-500.0,0.00017258,2]
[351134358,1738348245757,-965.04,0.00017258,2]
[351134359,1738348245766,-557.93,0.00017258,2]
[351134360,1738348245775,-500.0,0.00017258,2]
[351134361,1738348245784,-2395.63,0.00017258,2]
[351134362,1738348245794,-1060.87,0.00017258,2]
[351134363,1738348245803,-1276.49,0.00017258,2]
[351134364,1738348245812,-500.0,0.00017258,2]
[351134365,1738348245822,-500.0,0.00017258,2]
[351134366,1738348245831,-500.0,0.00017258,2]
[351134367,1738348245840,-500.0,0.00017258,2]
[351134368,1738348245850,-500.0,0.00017258,2]
[351134369,1738348245859,-973.6,0.00017258,2]
[351134370,1738348245869,-500.0,0.00017258,2]
[351134371,1738348245879,-500.0,0.00017258,2]
[351134372,1738348245889,-870.13,0.00017258,2]